fUST/lending_fUST_20241227
["ID","MTS","AMOUNT","RATE_DAILY","PERIOD"]
[346763115,1735270173893,-500.0,9.422e-05,2]
[346763116,1735270173961,-500.0,9.422e-05,2]
[346763117,1735270174029,-6420.27,9.422e-05,2]
[346763118,1735270174099,-684.27,9.422e-05,2]
[346763119,1735270174173,-500.0,9.422e-05,2]
[346763120,1735270174241,-500.0,9.422e-05,2]
[346763121,1735270174311,-500.0,9.422e-05,2]
[346763122,1735270174379,-500.0,9.422e-05,2]
[346763123,1735270174450,-640.76,9.422e-05,2]
[346763124,1735270174523,-500.0,9.422e-05,2]
[346763125,1735270174592,-618.57,9.422e-05,2]
[346763126,1735270174661,-708.79,9.422e-05,2]
[346763127,1735270174728,-500.0,9.423e-05,2]
[346763128,1735270174797,-297.70368559,9.423e-05,2]
[346763129,1735270174862,-540.29329063,9.423e-05,2]
[346763130,1735270174928,-500.0,9.424e-05,2]
[346763131,1735270174996,-500.0,9.424e-05,2]
[346763132,1735270175064,-500.0,9.424e-05,2]
[346763133,1735270175131,-500.0,9.424e-05,2]
[346763134,1735270175198,-500.0,9.424e-05,2]
[346763135,1735270175264,-500.0,9.424e-05,2]
[346763136,1735270175330,-500.0,9.424e-05,2]
[346763137,1735270175397,-500.0,9.424e-05,2]
[346763138,1735270175467,-500.0,9.424e-05,2]
[346763139,1735270175538,-500.0,9.424e-05,2]
[346763140,1735270175609,-500.0,9.424e-05,2]
[346763141,1735270175678,-5722.0,9.424e-05,2]
[346763142,1735270175751,-5717.0,9.424e-05,2]
[346763143,1735270175819,-5717.0,9.424e-05,2]
[346763144,1735270175884,-5717.0,9.424e-05,2]
[346763145,1735270175947,-5717.0,9.424e-05,2]
[346763146,1735270176012,-5717.0,9.424e-05,2]
[346763147,1735270176082,-13501.0,9.424e-05,2]
[346763148,1735270176145,-13494.0,9.424e-05,2]
[346763149,1735270176210,-13494.0,9.424e-05,2]
[346763150,1735270176275,-13494.0,9.424e-05,2]
[346763151,1735270176337,-13494.0,9.424e-05,2]
[346763152,1735270176403,-13494.0,9.424e-05,2]
[346763153,1735270176471,-13494.0,9.424e-05,2]
[346763154,1735270176537,-9610.50352346,9.424e-05,2]
[346763155,1735270177074,-1890.31528452,9.424e-05,2]
[346763156,1735270177108,-498.01797905,9.424e-05,2]
[346763157,1735270177280,-1495.16321297,9.424e-05,2]
[346763158,1735270177304,-2416.40074298,9.613e-05,2]
[346763159,1735270177327,-3000.0,9.613e-05,2]
[346763160,1735270177350,-500.0,9.695e-05,2]
[346763161,1735270177373,-500.0,9.695e-05,2]
[346763162,1735270177397,-500.0,9.695e-05,2]
[346763163,1735270177421,-104.04368356,9.696e-05,2]
[346763164,1735270178122,500.0,9.422e-05,2]
[346763165,1735270188106,500.0,9.422e-05,2]
[346763166,1735270189146,332.79907267,9.421e-05,2]
[346763167,1735270192142,500.0,9.422e-05,2]
[346763168,1735270194000,-501.78936168,9.693e-05,2]
[346763169,1735270194032,-500.0,9.693e-05,2]
[346763170,1735270194061,-500.0,9.693e-05,2]
[346763171,1735270194093,-395.95631644,9.696e-05,2]
[346763172,1735270194123,-40.33627167,9.696e-05,2]
[346763173,1735270194168,-459.66372833,9.696e-05,2]
[346763174,1735270194198,-220.24484754,9.696e-05,2]
[346763175,1735270197640,500.0,9.422e-05,2]
[346763176,1735270200532,500.0,9.422e-05,2]
[346763177,1735270200616,2292.46,9.421e-05,2]
[346763178,1735270206724,500.0,9.422e-05,2]
[346763179,1735270214304,305.8398107,8.712e-05,2]
[346763180,1735270215474,689.91,9.421e-05,2]
[346763181,1735270218494,324.57680693,9.421e-05,2]
[346763182,1735270221059,500.0,9.421e-05,2]
[346763183,1735270224787,500.0,9.421e-05,2]
[346763184,1735270225616,500.0,9.422e-05,2]
[346763185,1735270228569,500.0,9.422e-05,2]
[346763231,1735270232498,-332.98495785,9.611e-05,2]
[346763233,1735270232509,-300.0,9.695e-05,2]
[346763235,1735270232520,-2292.46,9.695e-05,2]
[346763237,1735270232530,-689.91,9.695e-05,2]
[346763239,1735270232539,-440.02583822,9.695e-05,2]
[346763250,1735270232643,-59.97416178,9.695e-05,2]
[346763252,1735270232653,-500.0,9.695e-05,2]
[346763254,1735270232663,-500.0,9.695e-05,2]
[346763256,1735270232674,-500.0,9.695e-05,2]
[346763258,1735270232686,-279.75515246,9.696e-05,2]
[346763260,1735270232696,-500.0,9.696e-05,2]
[346763262,1735270232706,-500.0,9.696e-05,2]
[346763265,1735270232716,-389.62087041,9.696e-05,2]
[346763266,1735270232727,-500.0,9.696e-05,2]
[346763268,1735270232736,-500.0,9.696e-05,2]
[346763270,1735270232745,-349.95423101,9.696e-05,2]
[346763279,1735270232847,857.77,9.422e-05,2]
[346763282,1735270233509,759.77,9.421e-05,2]
[346763283,1735270233750,555.73,9.421e-05,2]
[346763284,1735270235687,500.0,9.421e-05,2]
[346763285,1735270237410,500.0,9.422e-05,2]
[346763311,1735270238493,-759.77,9.695e-05,2]
[346763312,1735270238503,-500.0,9.695e-05,2]
[346763313,1735270238513,-500.0,9.695e-05,2]
[346763314,1735270238523,-500.0,9.695e-05,2]
[346763315,1735270238532,-500.0,9.695e-05,2]
[346763316,1735270238542,-500.0,9.695e-05,2]
[346763317,1735270238551,-500.0,9.695e-05,2]
[346763318,1735270238561,-195.21622749,9.695e-05,2]
[346763319,1735270239795,-293.63610244,9.695e-05,2]
[346763320,1735270239805,-201.47828286,9.695e-05,2]
[346763321,1735270239844,-298.52171714,9.695e-05,2]
[346763322,1735270239854,-218.4157448,9.695e-05,2]
[346763323,1735270239864,-500.0,9.695e-05,2]
[346763324,1735270239874,-504.83426407,9.695e-05,2]
[346763325,1735270239883,-150.04576899,9.696e-05,2]
[346763326,1735270239893,-500.0,9.696e-05,2]
[346763327,1735270239903,-500.0,9.696e-05,2]
[346763328,1735270239912,-500.0,9.696e-05,2]
[346763329,1735270239922,-500.0,9.696e-05,2]
[346763330,1735270239931,-500.0,9.696e-05,2]
[346763331,1735270239941,-500.0,9.696e-05,2]
[346763332,1735270239951,-500.0,9.696e-05,2]
[346763333,1735270239960,-500.0,9.696e-05,2]
[346763334,1735270239970,-500.0,9.696e-05,2]
[346763336,1735270239980,-500.0,9.696e-05,2]
[346763337,1735270239990,-500.0,9.696e-05,2]
[346763338,1735270239999,-500.0,9.696e-05,2]
[346763339,1735270240009,-500.0,9.696e-05,2]
[346763341,1735270240019,-500.0,9.696e-05,2]
[346763344,1735270240034,-500.0,9.696e-05,2]
[346763346,1735270240044,-500.0,9.696e-05,2]
[346763348,1735270240054,-500.0,9.696e-05,2]
[346763350,1735270240063,-500.0,9.696e-05,2]
[346763352,1735270240074,-500.0,9.696e-05,2]
[346763353,1735270240084,-500.0,9.696e-05,2]
[346763354,1735270240094,-1077.56,9.696e-05,2]
[346763355,1735270240106,-498.67627562,9.696e-05,2]
[346763356,1735270240117,-826.73,9.696e-05,2]
[346763357,1735270240127,-500.0,9.696e-05,2]
[346763359,1735270240137,-500.0,9.696e-05,2]
[346763360,1735270240147,-544.8231275,9.696e-05,2]
[346763361,1735270240156,-500.0,9.696e-05,2]
[346763362,1735270240168,-500.0,9.696e-05,2]
[346763363,1735270240178,-500.0,9.696e-05,2]
[346763364,1735270240188,-500.0,9.696e-05,2]
[346763365,1735270240198,-500.0,9.696e-05,2]
[346763366,1735270240208,-500.0,9.696e-05,2]
[346763367,1735270240218,-500.0,9.696e-05,2]
[346763368,1735270240227,-500.0,9.696e-05,2]
[346763369,1735270240237,-500.0,9.696e-05,2]
[346763370,1735270240246,-500.0,9.696e-05,2]
[346763371,1735270240256,-693.95,9.696e-05,2]
[346763372,1735270240266,-1155.37,9.696e-05,2]
[346763374,1735270240275,-261.07,9.696e-05,2]
[346763376,1735270240285,-500.0,9.696e-05,2]
[346763377,1735270240294,-500.0,9.696e-05,2]
[346763378,1735270240304,-500.0,9.696e-05,2]
[346763379,1735270240314,-381.84361267,9.696e-05,2]
[346763380,1735270240323,-500.0,9.696e-05,2]
[346763381,1735270240332,-500.0,9.696e-05,2]
[346763382,1735270240343,-500.0,9.696e-05,2]
[346763383,1735270240352,-500.0,9.696e-05,2]
[346763384,1735270240362,-621.18105125,9.696e-05,2]
[346763385,1735270240371,-500.0,9.696e-05,2]
[346763386,1735270240381,-644.29,9.696e-05,2]
[346763387,1735270240391,-246.90461551,9.696e-05,2]
[346763388,1735270240401,-6420.27,9.696e-05,2]
[346763389,1735270240411,-684.27,9.696e-05,2]
[346763390,1735270240421,-500.0,9.696e-05,2]
[346763391,1735270240431,-500.0,9.696e-05,2]
[346763392,1735270240442,-500.0,9.696e-05,2]
[346763393,1735270240452,-500.0,9.696e-05,2]
[346763394,1735270240462,-500.0,9.696e-05,2]
[346763395,1735270240473,-640.76,9.696e-05,2]
[346763396,1735270240483,-500.0,9.696e-05,2]
[346763397,1735270240566,-618.57,9.696e-05,2]
[346763398,1735270240575,-708.79,9.696e-05,2]
[346763399,1735270240585,-500.0,9.696e-05,2]
[346763400,1735270240595,-500.0,9.696e-05,2]
[346763401,1735270240604,-500.0,9.696e-05,2]
[346763402,1735270240614,-500.0,9.696e-05,2]
[346763403,1735270240623,-500.0,9.696e-05,2]
[346763404,1735270240633,-500.0,9.696e-05,2]
[346763405,1735270240642,-857.77,9.696e-05,2]
[346763406,1735270240652,-500.0,9.696e-05,2]
[346763407,1735270240661,-500.0,9.71e-05,2]
[346763408,1735270240671,-500.0,9.71e-05,2]
[346763409,1735270240680,-500.0,9.711e-05,2]
[346763410,1735270240691,-513.24879858,9.711e-05,2]
[346763411,1735270240700,-500.0,9.711e-05,2]
[346763412,1735270240710,-500.0,9.711e-05,2]
[346763413,1735270240719,-500.0,9.711e-05,2]
[346763414,1735270240729,-190.24022691,9.711e-05,2]
[346763415,1735270240738,-500.0,9.711e-05,2]
[346763416,1735270240747,-293.78651882,9.711e-05,2]
[346763417,1735270240758,-517.00251571,9.711e-05,2]
[346763418,1735270240767,-500.0,9.711e-05,2]
[346763419,1735270240777,-500.0,9.711e-05,2]
[346763420,1735270240786,-500.0,9.711e-05,2]
[346763421,1735270240796,-501.13413891,9.711e-05,2]
[346763422,1735270240812,-501.40081499,9.711e-05,2]
[346763423,1735270240827,-500.0,9.711e-05,2]
[346763424,1735270240837,-576.22724723,9.711e-05,2]
[346763425,1735270240847,-500.0,9.711e-05,2]
[346763426,1735270240858,-500.0,9.711e-05,2]
[346763427,1735270240868,-218.51150275,9.711e-05,2]
[346763428,1735270240878,-500.0,9.711e-05,2]
[346763429,1735270240888,-500.0,9.711e-05,2]
[346763430,1735270240898,-500.0,9.711e-05,2]
[346763431,1735270240908,-500.0,9.711e-05,2]
[346763432,1735270240918,-500.0,9.711e-05,2]
[346763433,1735270240928,-381.12333016,9.711e-05,2]
[346763434,1735270240938,-500.0,9.711e-05,2]
[346763435,1735270240948,-500.0,9.711e-05,2]
[346763436,1735270240958,-500.0,9.711e-05,2]
[346763437,1735270240968,-500.0,9.711e-05,2]
[346763438,1735270240978,-500.0,9.711e-05,2]
[346763439,1735270240988,-500.0,9.711e-05,2]
[346763440,1735270240998,-501.23049456,9.711e-05,2]
[346763441,1735270241008,-500.0,9.711e-05,2]
[346763442,1735270241017,-500.0,9.711e-05,2]
[346763443,1735270241030,-500.0,9.711e-05,2]
[346763444,1735270241040,-500.0,9.711e-05,2]
[346763445,1735270241050,-500.0,9.711e-05,2]
[346763446,1735270241060,-500.0,9.711e-05,2]
[346763447,1735270241071,-500.0,9.711e-05,2]
[346763448,1735270241081,-500.0,9.711e-05,2]
[346763449,1735270241090,-500.0,9.711e-05,2]
[346763450,1735270241100,-500.0,9.711e-05,2]
[346763451,1735270241110,-500.1828881,9.711e-05,2]
[346763452,1735270241120,-537.1010704,9.711e-05,2]
[346763453,1735270241130,-500.0,9.711e-05,2]
[346763454,1735270241140,-500.0,9.711e-05,2]
[346763455,1735270241149,-382.00120309,9.711e-05,2]
[346763456,1735270241159,-488.79439532,9.711e-05,2]
[346763457,1735270241169,-500.0,9.711e-05,2]
[346763458,1735270241178,-500.0,9.711e-05,2]
[346763459,1735270241188,-500.0,9.711e-05,2]
[346763460,1735270241198,-500.0,9.711e-05,2]
[346763461,1735270241208,-500.0,9.711e-05,2]
[346763462,1735270241217,-500.0,9.711e-05,2]
[346763463,1735270241228,-500.0,9.711e-05,2]
[346763464,1735270241238,-500.0,9.711e-05,2]
[346763465,1735270241248,-500.0,9.711e-05,2]
[346763466,1735270241258,-500.0,9.711e-05,2]
[346763467,1735270241268,-500.0,9.711e-05,2]
[346763468,1735270241277,-500.0,9.711e-05,2]
[346763469,1735270241287,-235.99392203,9.711e-05,2]
[346763470,1735270241297,-500.0,9.711e-05,2]
[346763471,1735270241306,-500.0,9.711e-05,2]
[346763472,1735270241316,-500.0,9.711e-05,2]
[346763473,1735270241326,-500.0,9.711e-05,2]
[346763474,1735270241336,-500.0,9.711e-05,2]
[346763475,1735270241346,-500.0,9.711e-05,2]
[346763476,1735270241356,-500.0,9.711e-05,2]
[346763477,1735270241366,-500.0,9.711e-05,2]
[346763478,1735270241376,-500.0,9.711e-05,2]
[346763479,1735270241386,-500.0,9.711e-05,2]
[346763480,1735270241396,-500.7313372,9.711e-05,2]
[346763481,1735270241406,-500.0,9.711e-05,2]
[346763482,1735270241416,-500.0,9.711e-05,2]
[346763483,1735270241427,-500.0,9.711e-05,2]
[346763484,1735270241437,-500.0,9.711e-05,2]
[346763485,1735270241447,-500.0,9.711e-05,2]
[346763486,1735270241458,-500.0,9.711e-05,2]
[346763487,1735270241468,-502.50565387,9.711e-05,2]
[346763488,1735270241478,-500.0,9.711e-05,2]
[346763489,1735270241488,-500.0,9.711e-05,2]
[346763490,1735270241497,-500.0,9.711e-05,2]
[346763491,1735270241507,-502.23411489,9.711e-05,2]
[346763492,1735270241516,-500.0,9.711e-05,2]
[346763493,1735270241526,-500.0,9.711e-05,2]
[346763494,1735270241536,-500.0,9.711e-05,2]
[346763495,1735270241546,-500.0,9.711e-05,2]
[346763496,1735270241555,-500.0,9.711e-05,2]
[346763497,1735270241565,-500.0,9.711e-05,2]
[346763498,1735270241574,-500.0,9.711e-05,2]
[346763499,1735270241584,-500.0,9.711e-05,2]
[346763500,1735270241593,-500.0,9.711e-05,2]
[346763501,1735270241603,-500.0,9.711e-05,2]
[346763502,1735270241613,-195.2808695,9.711e-05,2]
[346763503,1735270241622,-500.0,9.711e-05,2]
[346763504,1735270241632,-502.14242565,9.711e-05,2]
[346763505,1735270241643,-500.0,9.711e-05,2]
[346763506,1735270241655,-500.0,9.711e-05,2]
[346763507,1735270241664,-503.58407444,9.711e-05,2]
[346763508,1735270241674,-500.0,9.711e-05,2]
[346763509,1735270241683,-500.0,9.711e-05,2]
[346763510,1735270241694,-500.0,9.711e-05,2]
[346763511,1735270241703,-500.0,9.711e-05,2]
[346763512,1735270241714,-530.53503894,9.711e-05,2]
[346763513,1735270241723,-500.0,9.711e-05,2]
[346763514,1735270241733,-500.0,9.711e-05,2]
[346763515,1735270241743,-500.0,9.711e-05,2]
[346763516,1735270241753,-500.0,9.711e-05,2]
[346763517,1735270241762,-501.65846824,9.711e-05,2]
[346763518,1735270241772,-121.1935621,9.711e-05,2]
[346763519,1735270241788,-355.32346046,9.711e-05,2]
[346763520,1735270241917,500.0,9.421e-05,2]
[346763521,1735270242177,-1364.12763544,9.598e-05,2]
[346763522,1735270242763,500.0,9.422e-05,2]
[346763524,1735270242952,215.25089443,9.421e-05,2]
[346763614,1735270243976,-9.46149389,9.598e-05,2]
[346763668,1735270244502,500.0,9.422e-05,2]
[346763779,1735270247040,-398.52081278,9.598e-05,2]
[346763780,1735270247051,-547.16257145,9.598e-05,2]
[346763781,1735270247061,-500.0,9.695e-05,2]
[346763782,1735270247071,-500.0,9.695e-05,2]
[346763783,1735270247080,-500.0,9.696e-05,2]
[346763784,1735270247090,-23.48297744,9.711e-05,2]
[346763785,1735270247100,-500.0,9.711e-05,2]
[346763786,1735270247110,-513.85725535,9.711e-05,2]
[346763787,1735270247120,-500.0,9.711e-05,2]
[346763788,1735270247130,-500.0,9.711e-05,2]
[346763789,1735270247139,-503.81825721,9.711e-05,2]
[346763790,1735270247148,-508.00122682,9.711e-05,2]
[346763791,1735270247157,-500.0,9.711e-05,2]
[346763792,1735270247167,-501.84019742,9.711e-05,2]
[346763793,1735270247176,-500.0,9.711e-05,2]
[346763794,1735270247186,-501.27720006,9.711e-05,2]
[346763795,1735270247196,-500.0,9.711e-05,2]
[346763796,1735270247206,-500.0,9.711e-05,2]
[346763797,1735270247215,-500.0,9.711e-05,2]
[346763798,1735270247225,-500.0,9.711e-05,2]
[346763800,1735270247235,-498.18453664,9.711e-05,2]
[346763802,1735270247244,-500.0,9.711e-05,2]
[346763804,1735270247254,-500.0,9.711e-05,2]
[346763806,1735270247263,-500.0,9.711e-05,2]
[346763808,1735270247273,-500.0,9.711e-05,2]
[346763810,1735270247283,-500.0,9.711e-05,2]
[346763812,1735270247292,-422.4193914,9.711e-05,2]
[346763814,1735270247302,-500.0,9.711e-05,2]
[346763816,1735270247311,-500.0,9.711e-05,2]
[346763818,1735270247320,-500.0,9.711e-05,2]
[346763820,1735270247329,-500.0,9.711e-05,2]
[346763822,1735270247339,-500.0,9.711e-05,2]
[346763824,1735270247348,-501.79148804,9.711e-05,2]
[346763833,1735270247426,-500.0,9.711e-05,2]
[346763835,1735270247437,-516.00944989,9.711e-05,2]
[346763837,1735270247448,-500.0,9.711e-05,2]
[346763839,1735270247457,-500.0,9.711e-05,2]
[346763841,1735270247467,-500.0,9.711e-05,2]
[346763842,1735270247477,-500.0,9.711e-05,2]
[346763843,1735270247487,-500.0,9.711e-05,2]
[346763844,1735270247497,-502.87977265,9.711e-05,2]
[346763845,1735270247507,-504.25281217,9.711e-05,2]
[346763846,1735270247517,-500.75640232,9.711e-05,2]
[346763847,1735270247527,-500.0,9.711e-05,2]
[346763848,1735270247537,-500.0,9.711e-05,2]
[346763849,1735270247546,-500.0,9.711e-05,2]
[346763850,1735270247557,-500.0,9.711e-05,2]
[346763851,1735270247567,-500.0,9.711e-05,2]
[346763852,1735270247577,-500.0,9.711e-05,2]
[346763853,1735270247587,-500.0,9.711e-05,2]
[346763854,1735270247596,-500.0,9.711e-05,2]
[346763855,1735270247606,-500.0,9.711e-05,2]
[346763856,1735270247616,-500.0,9.711e-05,2]
[346763857,1735270247626,-502.49905391,9.711e-05,2]
[346763858,1735270247635,-500.0,9.711e-05,2]
[346763859,1735270247646,-513.12445771,9.711e-05,2]
[346763860,1735270247657,-500.0,9.711e-05,2]
[346763861,1735270247667,-500.87239681,9.711e-05,2]
[346763862,1735270247676,-500.0,9.711e-05,2]
[346763863,1735270247686,-272.90330459,9.711e-05,2]
[346763864,1735270247695,-500.0,9.711e-05,2]
[346763865,1735270247704,-500.0,9.711e-05,2]
[346763866,1735270247714,-502.2392198,9.711e-05,2]
[346763867,1735270247723,-500.0,9.711e-05,2]
[346763868,1735270247732,-498.60529947,9.711e-05,2]
[346763869,1735270247741,-501.67519762,9.711e-05,2]
[346763870,1735270247750,-500.0,9.711e-05,2]
[346763871,1735270247760,-500.0,9.711e-05,2]
[346763873,1735270247769,-500.0,9.711e-05,2]
[346763874,1735270247778,-500.0,9.711e-05,2]
[346763876,1735270247787,-500.0,9.711e-05,2]
[346763878,1735270247796,-500.0,9.711e-05,2]
[346763879,1735270247806,-500.0,9.711e-05,2]
[346763880,1735270247815,-500.0,9.711e-05,2]
[346763882,1735270247825,-500.0,9.711e-05,2]
[346763884,1735270247834,-500.0,9.711e-05,2]
[346763885,1735270247843,-500.0,9.711e-05,2]
[346763886,1735270247852,-500.0,9.711e-05,2]
[346763887,1735270247861,-500.0,9.711e-05,2]
[346763888,1735270247871,-500.0,9.711e-05,2]
[346763889,1735270247881,-500.0,9.711e-05,2]
[346763890,1735270247890,-500.0,9.711e-05,2]
[346763891,1735270247900,-500.0,9.711e-05,2]
[346763892,1735270247909,-500.0,9.711e-05,2]
[346763893,1735270247919,-500.0,9.711e-05,2]
[346763894,1735270247929,-500.0,9.711e-05,2]
[346763895,1735270247938,-509.68711515,9.711e-05,2]
[346763896,1735270247948,-500.0,9.711e-05,2]
[346763897,1735270247958,-1275.68,9.711e-05,2]
[346763898,1735270247967,-500.0,9.711e-05,2]
[346763899,1735270247977,-469.82933686,9.711e-05,2]
[346763900,1735270247986,-500.0,9.711e-05,2]
[346763901,1735270247997,-500.0,9.711e-05,2]
[346763902,1735270248007,-500.0,9.711e-05,2]
[346763903,1735270248021,-614.59,9.711e-05,2]
[346763904,1735270248044,-569.74,9.711e-05,2]
[346763905,1735270248059,-500.0,9.711e-05,2]
[346763906,1735270248076,-500.0,9.711e-05,2]
[346763907,1735270248093,-500.0,9.711e-05,2]
[346763908,1735270248111,-500.0,9.711e-05,2]
[346763909,1735270248127,-502.53736238,9.711e-05,2]
[346763910,1735270248144,-500.0,9.711e-05,2]
[346763911,1735270248159,-500.0,9.711e-05,2]
[346763912,1735270248173,-500.0,9.711e-05,2]
[346763913,1735270248189,-500.0,9.711e-05,2]
[346763914,1735270248203,-500.0,9.711e-05,2]
[346763915,1735270248217,-500.0,9.711e-05,2]
[346763916,1735270248232,-500.0,9.711e-05,2]
[346763917,1735270248248,-500.0,9.711e-05,2]
[346763918,1735270248263,-500.0,9.711e-05,2]
[346763919,1735270248279,-500.0,9.711e-05,2]
[346763920,1735270248295,-500.0,9.711e-05,2]
[346763921,1735270248307,-500.0,9.711e-05,2]
[346763922,1735270248320,-500.0,9.711e-05,2]
[346763923,1735270248337,-500.0,9.711e-05,2]
[346763924,1735270248351,-500.0,9.711e-05,2]
[346763925,1735270248364,-500.0,9.711e-05,2]
[346763926,1735270248379,-14883.84,9.711e-05,2]
[346763927,1735270248392,-500.0,9.711e-05,2]
[346763928,1735270248404,-500.0,9.711e-05,2]
[346763929,1735270248417,-500.0,9.711e-05,2]
[346763930,1735270248431,-500.0,9.711e-05,2]
[346763931,1735270248444,-500.0,9.711e-05,2]
[346763932,1735270248460,-500.0,9.711e-05,2]
[346763933,1735270248473,-500.0,9.711e-05,2]
[346763934,1735270248485,-500.0,9.711e-05,2]
[346763935,1735270248499,-500.0,9.711e-05,2]
[346763936,1735270248511,-500.0,9.711e-05,2]
[346763937,1735270248524,-500.0,9.711e-05,2]
[346763938,1735270248537,-520.66,9.711e-05,2]
[346763939,1735270248551,-500.84687155,9.711e-05,2]
[346763940,1735270248563,-500.0,9.711e-05,2]
[346763941,1735270248577,-500.0,9.711e-05,2]
[346763942,1735270248590,-500.0,9.711e-05,2]
[346763943,1735270248603,-500.0,9.711e-05,2]
[346763944,1735270248616,-500.0,9.711e-05,2]
[346763945,1735270248630,-500.0,9.711e-05,2]
[346763946,1735270248643,-208.39257991,9.711e-05,2]
[346763947,1735270248657,-500.0,9.711e-05,2]
[346763948,1735270248669,-228.20530344,9.711e-05,2]
[346763949,1735270248682,-500.0,9.712e-05,2]
[346763950,1735270248696,-500.0,9.712e-05,2]
[346763951,1735270248708,-500.0,9.712e-05,2]
[346763952,1735270248721,-500.0,9.712e-05,2]
[346763953,1735270248734,-500.0,9.712e-05,2]
[346763954,1735270248747,-500.0,9.712e-05,2]
[346763955,1735270248760,-500.0,9.712e-05,2]
[346763956,1735270248774,-500.0,9.712e-05,2]
[346763957,1735270248788,-500.0,9.712e-05,2]
[346763958,1735270248799,-500.0,9.712e-05,2]
[346763959,1735270248808,-500.0,9.712e-05,2]
[346763960,1735270248818,-500.0,9.712e-05,2]
[346763961,1735270248827,-500.0,9.712e-05,2]
[346763962,1735270248837,-3470.79,9.712e-05,2]
[346763963,1735270248846,-500.0,9.712e-05,2]
[346763964,1735270248974,-500.0,9.712e-05,2]
[346763965,1735270248994,-500.0,9.712e-05,2]
[346763966,1735270249004,-500.0,9.712e-05,2]
[346763967,1735270249014,-500.0,9.712e-05,2]
[346763968,1735270249025,-500.0,9.712e-05,2]
[346763969,1735270249037,-500.0,9.712e-05,2]
[346763970,1735270249047,-1048.77,9.712e-05,2]
[346763971,1735270249056,-500.0,9.712e-05,2]
[346763972,1735270249067,-500.0,9.712e-05,2]
[346763973,1735270249076,-500.0,9.712e-05,2]
[346763974,1735270249085,-500.0,9.712e-05,2]
[346763975,1735270249095,-500.0,9.712e-05,2]
[346763976,1735270249105,-500.0,9.712e-05,2]
[346763977,1735270249116,-500.0,9.712e-05,2]
[346763978,1735270249126,-500.0,9.712e-05,2]
[346763979,1735270249136,-500.0,9.712e-05,2]
[346763980,1735270249145,-4234.62433708,9.712e-05,2]
[346763981,1735270249155,-500.0,9.712e-05,2]
[346763982,1735270249164,-500.0,9.712e-05,2]
[346763983,1735270249174,-500.86373198,9.713e-05,2]
[346763984,1735270249185,-500.72207422,9.713e-05,2]
[346763985,1735270249195,-500.0,9.713e-05,2]
[346763986,1735270249205,-500.0,9.713e-05,2]
[346763987,1735270249215,-500.0,9.713e-05,2]
[346763988,1735270249225,-500.0,9.713e-05,2]
[346763989,1735270249235,-230.54505399,9.713e-05,2]
[346763990,1735270249245,-500.0,9.713e-05,2]
[346763991,1735270249263,-500.0,9.713e-05,2]
[346763992,1735270249276,-500.0,9.713e-05,2]
[346763993,1735270249286,-601.94,9.713e-05,2]
[346763994,1735270249297,-500.0,9.713e-05,2]
[346763995,1735270249307,-500.0,9.713e-05,2]
[346763996,1735270249318,-180.58802642,9.713e-05,2]
[346763997,1735270249515,-319.41197358,9.713e-05,2]
[346763998,1735270249525,-500.0,9.713e-05,2]
[346763999,1735270249535,-500.413215,9.713e-05,2]
[346764000,1735270249545,-500.0,9.713e-05,2]
[346764001,1735270249554,-500.0,9.713e-05,2]
[346764002,1735270249563,-177.85158542,9.713e-05,2]
[346764003,1735270249664,500.0,9.422e-05,2]
[346764004,1735270249741,945.68338423,9.502e-05,2]
[346764005,1735270250403,500.0,9.422e-05,2]
[346764006,1735270254074,500.0,9.422e-05,2]
[346764007,1735270259763,500.0,9.421e-05,2]
[346764008,1735270260369,500.0,9.422e-05,2]
[346764009,1735270260459,1045.5,9.422e-05,2]
[346764010,1735270267523,500.0,9.421e-05,2]
[346764011,1735270270108,500.0,9.421e-05,2]
[346764012,1735270270329,500.0,9.422e-05,2]